Department,Entity, Transaction Date, Expense Type, Expense Area, Supplier Name,Transaction number, Amount, Invoice Description
DFID,CSC,03/06/2020,Scholar Stipend,Award Costs,Scholar,PIN046994,1110,
DFID,CSC,03/06/2020,Scholar Stipend,Award Costs,Scholar,PIN046995,1057.57,
DFID,CSC,05/06/2020,Tuition Fee,Award Costs,University of London DL,PIN046996,60400,
DFID,CSC,05/06/2020,Tuition Fee,Award Costs,University of Manchester,PIN046997,4831.8,
DFID,CSC,05/06/2020,Tuition Fee,Award Costs,University of Manchester,PIN046998,4831.8,
DFID,CSC,05/06/2020,Tuition Fee,Award Costs,University of Manchester,PIN046999,4831.8,
DFID,CSC,05/06/2020,Tuition Fee,Award Costs,University of Manchester,PIN047000,4831.8,
DFID,CSC,05/06/2020,Tuition Fee,Award Costs,University of Manchester,PIN047001,4831.8,
DFID,CSC,05/06/2020,Tuition Fee,Award Costs,University of Manchester,PIN047002,4831.8,
DFID,CSC,05/06/2020,Tuition Fee,Award Costs,University of Manchester,PIN047003,4831.8,
DFID,CSC,05/06/2020,Tuition Fee,Award Costs,University of Manchester,PIN047004,4831.8,
DFID,CSC,05/06/2020,Tuition Fee,Award Costs,University of Manchester,PIN047005,4831.8,
DFID,CSC,05/06/2020,Tuition Fee,Award Costs,University of Manchester,PIN047006,4831.8,
DFID,CSC,05/06/2020,Tuition Fee,Award Costs,University of Manchester,PIN047007,4831.8,
DFID,CSC,05/06/2020,Tuition Fee,Award Costs,University of Manchester,PIN047008,7247.7,
DFID,CSC,05/06/2020,Tuition Fee,Award Costs,University of Manchester,PIN047009,3399.9,
DFID,CSC,05/06/2020,Award Support Costs,Award Costs,London North West Healthcare NHS,PIN047011,800,
DFID,CSC,05/06/2020,Award Support Costs,Award Costs,London North West Healthcare NHS,PIN047011,800,
DFID,CSC,05/06/2020,Service Provision,Programme Costs,The British Council,PIN047012,10405.45,
DFID,CSC,05/06/2020,Alumni Engagement,Programme Costs,The British Council,PIN047012,52027.25,
DFID,CSC,05/06/2020,Service Provision,Admin Costs,The British Council,PIN047012,3553.95,
DFID,CSC,05/06/2020,Service Provision,Admin Costs,The British Council,PIN047012,17769.75,
DFID,CSC,05/06/2020,Scholar Allowances,Award Costs,Scholar,PIN047015,1856.93,
DFID,CSC,12/06/2020,Tuition Fee,Award Costs,University of Dundee,PIN047016,25000,
DFID,CSC,12/06/2020,Tuition Fee,Award Costs,Queens University Belfast,PIN047017,10440,
DFID,CSC,12/06/2020,Tuition Fee,Award Costs,Queens University Belfast,PIN047018,2175,
DFID,CSC,12/06/2020,Scholar Allowances,Award Costs,Scholar,PIN047019,600,
DFID,CSC,12/06/2020,Tuition Fee,Award Costs,The Open University,PIN047020,35900,
DFID,CSC,12/06/2020,Tuition Fee,Award Costs,The Open University,PIN047021,31520,
DFID,CSC,12/06/2020,Tuition Fee,Award Costs,The Open University,PIN047022,1172.7,
DFID,CSC,12/06/2020,Tuition Fee,Award Costs,The Open University,PIN047023,3224.3,
DFE,CSC,12/06/2020,Scholar Travel,Award Costs,Scholar,PIN047024,924.77,
DFID,CSC,16/06/2020,Scholar Stipend,Award Costs,Scholar,PIN047026,1110,
DFID,CSC,19/06/2020,Tuition Fee,Award Costs,University of Southampton,PIN047027,6040,
DFID,CSC,19/06/2020,Tuition Fee,Award Costs,University of Southampton,PIN047028,3020,
DFID,CSC,19/06/2020,Miscellaneous,Admin Costs,Public Chairs Forum,PIN047029,1250,
DFID,CSC,19/06/2020,Award Support Costs,Award Costs,The University of Birmingham,PIN047030,5000,
DFID,CSC,19/06/2020,Scholar Travel,Award Costs,Scholar,PIN047032,566,
DFID,CSC,19/06/2020,Tuition Fee,Award Costs,University of Strathclyde,PIN047033,3800,
DFID,CSC,19/06/2020,Tuition Fee,Award Costs,University of Strathclyde,PIN047034,3800,
DFID,CSC,19/06/2020,Tuition Fee,Award Costs,University of Strathclyde,PIN047035,3800,
DFID,CSC,19/06/2020,Tuition Fee,Award Costs,University of Strathclyde,PIN047036,3800,
DFID,CSC,19/06/2020,Scholar Travel,Award Costs,Scholar,PIN047038,599.45,
DFID,CSC,19/06/2020,Scholar Travel,Award Costs,Diversity Travel,PIN047039,1283.81,
DFID,CSC,19/06/2020,Fieldwork Airfare,Award Costs,Diversity Travel,PIN047039,1158.52,
DFID,CSC,19/06/2020,Fieldwork Airfare,Award Costs,Diversity Travel,PIN047039,1038.34,
DFID,CSC,19/06/2020,Fieldwork Airfare,Award Costs,Diversity Travel,PIN047039,679.12,
DFID,CSC,19/06/2020,Scholar Travel,Award Costs,Diversity Travel,PIN047039,598.3,
BEIS,CSC,19/06/2020,Scholar Travel,Award Costs,Diversity Travel,PIN047039,569.68,
BEIS,CSC,19/06/2020,Scholar Travel,Award Costs,Diversity Travel,PIN047039,549.62,
DFID,CSC,19/06/2020,Scholar Travel,Award Costs,Diversity Travel,PIN047039,542.3,
DFID,CSC,19/06/2020,Scholar Travel,Award Costs,Diversity Travel,PIN047039,519.82,
DFID,CSC,19/06/2020,Scholar Travel,Award Costs,Diversity Travel,PIN047039,492.79,
DFID,CSC,19/06/2020,Scholar Travel,Award Costs,Diversity Travel,PIN047039,484,
DFID,CSC,19/06/2020,Scholar Travel,Award Costs,Diversity Travel,PIN047039,418.02,
BEIS,CSC,19/06/2020,Scholar Travel,Award Costs,Diversity Travel,PIN047039,332.87,
DFID,CSC,19/06/2020,Scholar Travel,Award Costs,Diversity Travel,PIN047040,2038.37,
DFID,CSC,19/06/2020,Scholar Travel,Award Costs,Diversity Travel,PIN047040,1548.27,
DFID,CSC,19/06/2020,Scholar Travel,Award Costs,Diversity Travel,PIN047040,1548.27,
DFID,CSC,19/06/2020,Scholar Travel,Award Costs,Diversity Travel,PIN047040,1189.56,
DFID,CSC,19/06/2020,Scholar Travel,Award Costs,Diversity Travel,PIN047040,916.62,
DFID,CSC,19/06/2020,Scholar Travel,Award Costs,Diversity Travel,PIN047040,831.44,
DFID,CSC,19/06/2020,Scholar Travel,Award Costs,Diversity Travel,PIN047040,732.76,
DFID,CSC,19/06/2020,Scholar Travel,Award Costs,Diversity Travel,PIN047040,687.76,
DFID,CSC,19/06/2020,Scholar Travel,Award Costs,Diversity Travel,PIN047040,624.9,
DFID,CSC,19/06/2020,Scholar Travel,Award Costs,Diversity Travel,PIN047040,618,
DFID,CSC,19/06/2020,Scholar Travel,Award Costs,Diversity Travel,PIN047040,612.67,
DFID,CSC,19/06/2020,Scholar Travel,Award Costs,Diversity Travel,PIN047040,612.67,
DFID,CSC,19/06/2020,Scholar Travel,Award Costs,Diversity Travel,PIN047040,611.67,
DFID,CSC,19/06/2020,Scholar Travel,Award Costs,Diversity Travel,PIN047040,611.07,
DFID,CSC,19/06/2020,Scholar Travel,Award Costs,Diversity Travel,PIN047040,541.37,
DFID,CSC,19/06/2020,Scholar Travel,Award Costs,Diversity Travel,PIN047040,497.87,
DFID,CSC,19/06/2020,Scholar Travel,Award Costs,Diversity Travel,PIN047040,490.76,
DFID,CSC,19/06/2020,Scholar Travel,Award Costs,Diversity Travel,PIN047040,487.44,
DFID,CSC,19/06/2020,Scholar Travel,Award Costs,Diversity Travel,PIN047040,414,
DFID,CSC,19/06/2020,Scholar Travel,Award Costs,Diversity Travel,PIN047040,397.96,
DFID,CSC,19/06/2020,Scholar Travel,Award Costs,Diversity Travel,PIN047040,395,
DFID,CSC,19/06/2020,Scholar Travel,Award Costs,Diversity Travel,PIN047040,395,
DFID,CSC,19/06/2020,Scholar Travel,Award Costs,Diversity Travel,PIN047040,367,
DFID,CSC,19/06/2020,Scholar Travel,Award Costs,Diversity Travel,PIN047040,362.99,
DFID,CSC,19/06/2020,Scholar Travel,Award Costs,Diversity Travel,PIN047040,356.34,
DFID,CSC,19/06/2020,Scholar Travel,Award Costs,Diversity Travel,PIN047040,343,
DFID,CSC,19/06/2020,Scholar Travel,Award Costs,Diversity Travel,PIN047040,334,
DFID,CSC,19/06/2020,Scholar Travel,Award Costs,Diversity Travel,PIN047040,306,
DFID,CSC,19/06/2020,Scholar Travel,Award Costs,Diversity Travel,PIN047040,300,
DFID,CSC,19/06/2020,Scholar Travel,Award Costs,Diversity Travel,PIN047040,234.04,
DFID,CSC,19/06/2020,Scholar Travel,Award Costs,Diversity Travel,PIN047040,170,
DFID,CSC,19/06/2020,Scholar Travel,Award Costs,Diversity Travel,PIN047040,115,
DFID,CSC,19/06/2020,Fieldwork Airfare,Award Costs,Diversity Travel,PIN047040,95,
DFID,CSC,19/06/2020,Fieldwork Airfare,Award Costs,Diversity Travel,PIN047040,85,
DFID,CSC,19/06/2020,Scholar Travel,Award Costs,Diversity Travel,PIN047040,70,
DFID,CSC,19/06/2020,Tuition Fee,Award Costs,University of Southampton,PIN047041,11960,
DFID,CSC,19/06/2020,Scholar Engagement,Programme Costs,Commissioner,PIN047042,229.55,
DFID,CSC,19/06/2020,Scholar Engagement,Programme Costs,Commissioner,PIN047042,180,
DFID,CSC,19/06/2020,Commission Meetings,Admin Costs,Commissioner,PIN047042,43.55,
DFID,CSC,19/06/2020,Commission Meetings,Admin Costs,Commissioner,PIN047042,94.1,
DFID,CSC,19/06/2020,Commission Meetings,Admin Costs,Commissioner,PIN047042,43.55,
DFID,CSC,26/06/2020,Scholar Stipend,Award Costs,Scholar,PIN047047,1110,
DFID,CSC,26/06/2020,Scholar Stipend,Award Costs,Scholar,PIN047048,1110,
DFID,CSC,26/06/2020,Scholar Stipend,Award Costs,Scholar,PIN047049,1110,
DFID,CSC,26/06/2020,Scholar Stipend,Award Costs,Scholar,PIN047050,1110,
DFID,CSC,26/06/2020,Scholar Stipend,Award Costs,Scholar,PIN047051,1110,
DFID,CSC,26/06/2020,Scholar Stipend,Award Costs,Scholar,PIN047052,1110,
DFID,CSC,26/06/2020,Scholar Stipend,Award Costs,Scholar,PIN047053,1362,
DFID,CSC,26/06/2020,Scholar Stipend,Award Costs,Scholar,PIN047054,1110,
DFID,CSC,26/06/2020,Scholar Stipend,Award Costs,Scholar,PIN047055,1110,
DFID,CSC,26/06/2020,Scholar Stipend,Award Costs,Scholar,PIN047056,1362,
DFID,CSC,26/06/2020,Scholar Stipend,Award Costs,Scholar,PIN047057,1110,
DFID,CSC,26/06/2020,Scholar Stipend,Award Costs,Scholar,PIN047058,1110,
DFID,CSC,26/06/2020,Scholar Stipend,Award Costs,Scholar,PIN047059,1110,
DFID,CSC,26/06/2020,Scholar Stipend,Award Costs,Scholar,PIN047060,1110,
DFID,CSC,26/06/2020,Scholar Stipend,Award Costs,Scholar,PIN047061,1110,
DFID,CSC,26/06/2020,Scholar Stipend,Award Costs,Scholar,PIN047062,1110,
DFID,CSC,26/06/2020,Scholar Stipend,Award Costs,Scholar,PIN047063,1110,
DFID,CSC,26/06/2020,Scholar Stipend,Award Costs,Scholar,PIN047064,1110,
DFID,CSC,26/06/2020,Scholar Stipend,Award Costs,Scholar,PIN047065,1110,
DFID,CSC,26/06/2020,Scholar Stipend,Award Costs,Scholar,PIN047066,1362,
DFID,CSC,26/06/2020,Scholar Stipend,Award Costs,Scholar,PIN047067,1110,
DFID,CSC,26/06/2020,Scholar Stipend,Award Costs,Scholar,PIN047068,1110,
DFID,CSC,26/06/2020,Scholar Stipend,Award Costs,Scholar,PIN047069,1362,
DFID,CSC,26/06/2020,Scholar Stipend,Award Costs,Scholar,PIN047070,1110,
DFID,CSC,26/06/2020,Scholar Stipend,Award Costs,Scholar,PIN047071,1362,
DFID,CSC,26/06/2020,Scholar Stipend,Award Costs,Scholar,PIN047072,1110,
DFID,CSC,26/06/2020,Scholar Stipend,Award Costs,Scholar,PIN047073,1110,
DFID,CSC,26/06/2020,Scholar Stipend,Award Costs,Scholar,PIN047074,1110,
DFID,CSC,26/06/2020,Scholar Stipend,Award Costs,Scholar,PIN047075,1110,
DFID,CSC,26/06/2020,Scholar Stipend,Award Costs,Scholar,PIN047076,1362,
DFID,CSC,26/06/2020,Scholar Stipend,Award Costs,Scholar,PIN047077,1110,
DFID,CSC,26/06/2020,Scholar Stipend,Award Costs,Scholar,PIN047078,1110,
DFID,CSC,26/06/2020,Scholar Stipend,Award Costs,Scholar,PIN047079,1362,
DFID,CSC,26/06/2020,Scholar Stipend,Award Costs,Scholar,PIN047080,1362,
DFID,CSC,26/06/2020,Scholar Stipend,Award Costs,Scholar,PIN047081,1110,
DFID,CSC,26/06/2020,Scholar Stipend,Award Costs,Scholar,PIN047082,1110,
DFID,CSC,26/06/2020,Scholar Stipend,Award Costs,Scholar,PIN047083,1110,
DFID,CSC,26/06/2020,Scholar Stipend,Award Costs,Scholar,PIN047084,1110,
DFID,CSC,26/06/2020,Scholar Stipend,Award Costs,Scholar,PIN047085,1110,
DFID,CSC,26/06/2020,Scholar Stipend,Award Costs,Scholar,PIN047086,1110,
DFID,CSC,26/06/2020,Scholar Stipend,Award Costs,Scholar,PIN047087,555,
DFID,CSC,26/06/2020,Scholar Stipend,Award Costs,Scholar,PIN047088,1362,
DFID,CSC,26/06/2020,Scholar Stipend,Award Costs,Scholar,PIN047089,1110,
DFID,CSC,26/06/2020,Scholar Stipend,Award Costs,Scholar,PIN047090,1110,
DFID,CSC,26/06/2020,Scholar Stipend,Award Costs,Scholar,PIN047091,1362,
DFID,CSC,26/06/2020,Scholar Stipend,Award Costs,Scholar,PIN047092,1362,
DFID,CSC,26/06/2020,Scholar Stipend,Award Costs,Scholar,PIN047093,1110,
DFID,CSC,26/06/2020,Scholar Stipend,Award Costs,Scholar,PIN047094,1110,
DFID,CSC,26/06/2020,Scholar Stipend,Award Costs,Scholar,PIN047095,1110,
DFID,CSC,26/06/2020,Scholar Stipend,Award Costs,Scholar,PIN047096,1110,
DFID,CSC,26/06/2020,Scholar Stipend,Award Costs,Scholar,PIN047097,1110,
DFID,CSC,26/06/2020,Scholar Stipend,Award Costs,Scholar,PIN047098,1110,
DFID,CSC,26/06/2020,Scholar Stipend,Award Costs,Scholar,PIN047099,1110,
DFID,CSC,26/06/2020,Scholar Stipend,Award Costs,Scholar,PIN047100,1110,
DFID,CSC,26/06/2020,Scholar Stipend,Award Costs,Scholar,PIN047101,1110,
DFID,CSC,26/06/2020,Scholar Stipend,Award Costs,Scholar,PIN047102,1110,
DFID,CSC,26/06/2020,Scholar Stipend,Award Costs,Scholar,PIN047103,1110,
DFID,CSC,26/06/2020,Scholar Stipend,Award Costs,Scholar,PIN047104,1362,
DFID,CSC,26/06/2020,Scholar Stipend,Award Costs,Scholar,PIN047105,1110,
DFID,CSC,26/06/2020,Scholar Stipend,Award Costs,Scholar,PIN047106,1110,
DFID,CSC,26/06/2020,Scholar Stipend,Award Costs,Scholar,PIN047107,1110,
DFID,CSC,26/06/2020,Scholar Stipend,Award Costs,Scholar,PIN047108,1110,
DFID,CSC,26/06/2020,Scholar Stipend,Award Costs,Scholar,PIN047109,1362,
DFID,CSC,26/06/2020,Scholar Stipend,Award Costs,Scholar,PIN047110,1362,
DFID,CSC,26/06/2020,Scholar Stipend,Award Costs,Scholar,PIN047111,1110,
DFID,CSC,26/06/2020,Scholar Stipend,Award Costs,Scholar,PIN047112,1110,
DFID,CSC,26/06/2020,Scholar Stipend,Award Costs,Scholar,PIN047113,1110,
DFID,CSC,26/06/2020,Scholar Stipend,Award Costs,Scholar,PIN047114,1110,
DFID,CSC,26/06/2020,Scholar Stipend,Award Costs,Scholar,PIN047115,1110,
DFID,CSC,26/06/2020,Scholar Stipend,Award Costs,Scholar,PIN047116,1110,
DFID,CSC,26/06/2020,Scholar Stipend,Award Costs,Scholar,PIN047117,1110,
DFID,CSC,26/06/2020,Scholar Stipend,Award Costs,Scholar,PIN047118,1110,
DFID,CSC,26/06/2020,Scholar Stipend,Award Costs,Scholar,PIN047119,1362,
DFID,CSC,26/06/2020,Scholar Stipend,Award Costs,Scholar,PIN047120,1110,
DFID,CSC,26/06/2020,Scholar Stipend,Award Costs,Scholar,PIN047121,1110,
DFID,CSC,26/06/2020,Scholar Stipend,Award Costs,Scholar,PIN047122,1110,
DFID,CSC,26/06/2020,Scholar Stipend,Award Costs,Scholar,PIN047123,1110,
DFID,CSC,26/06/2020,Scholar Stipend,Award Costs,Scholar,PIN047124,1110,
DFID,CSC,26/06/2020,Scholar Stipend,Award Costs,Scholar,PIN047125,1110,
DFID,CSC,26/06/2020,Scholar Stipend,Award Costs,Scholar,PIN047126,1110,
DFID,CSC,26/06/2020,Scholar Stipend,Award Costs,Scholar,PIN047127,1362,
DFID,CSC,26/06/2020,Scholar Stipend,Award Costs,Scholar,PIN047128,1110,
DFID,CSC,26/06/2020,Scholar Stipend,Award Costs,Scholar,PIN047129,1110,
DFID,CSC,26/06/2020,Scholar Stipend,Award Costs,Scholar,PIN047130,1110,
DFID,CSC,26/06/2020,Scholar Stipend,Award Costs,Scholar,PIN047131,1110,
DFID,CSC,26/06/2020,Scholar Stipend,Award Costs,Scholar,PIN047132,1110,
DFID,CSC,26/06/2020,Scholar Stipend,Award Costs,Scholar,PIN047133,1362,
DFID,CSC,26/06/2020,Scholar Stipend,Award Costs,Scholar,PIN047134,1110,
DFID,CSC,26/06/2020,Scholar Stipend,Award Costs,Scholar,PIN047135,1110,
DFID,CSC,26/06/2020,Scholar Stipend,Award Costs,Scholar,PIN047136,1110,
DFID,CSC,26/06/2020,Scholar Stipend,Award Costs,Scholar,PIN047137,1362,
DFID,CSC,26/06/2020,Scholar Stipend,Award Costs,Scholar,PIN047138,1110,
DFID,CSC,26/06/2020,Scholar Stipend,Award Costs,Scholar,PIN047139,1110,
DFID,CSC,26/06/2020,Scholar Stipend,Award Costs,Scholar,PIN047140,1362,
DFID,CSC,26/06/2020,Scholar Stipend,Award Costs,Scholar,PIN047141,1110,
DFID,CSC,26/06/2020,Scholar Stipend,Award Costs,Scholar,PIN047142,1110,
DFID,CSC,26/06/2020,Scholar Stipend,Award Costs,Scholar,PIN047143,1110,
DFID,CSC,26/06/2020,Scholar Stipend,Award Costs,Scholar,PIN047144,1110,
DFID,CSC,26/06/2020,Scholar Stipend,Award Costs,Scholar,PIN047145,1110,
DFID,CSC,26/06/2020,Scholar Stipend,Award Costs,Scholar,PIN047146,1362,
DFID,CSC,26/06/2020,Scholar Stipend,Award Costs,Scholar,PIN047147,1110,
DFID,CSC,26/06/2020,Scholar Stipend,Award Costs,Scholar,PIN047148,1362,
DFID,CSC,26/06/2020,Scholar Stipend,Award Costs,Scholar,PIN047149,1110,
DFID,CSC,26/06/2020,Scholar Stipend,Award Costs,Scholar,PIN047150,1110,
DFID,CSC,26/06/2020,Scholar Stipend,Award Costs,Scholar,PIN047151,1110,
DFID,CSC,26/06/2020,Scholar Stipend,Award Costs,Scholar,PIN047152,1362,
DFID,CSC,26/06/2020,Scholar Stipend,Award Costs,Scholar,PIN047153,1110,
DFID,CSC,26/06/2020,Scholar Stipend,Award Costs,Scholar,PIN047154,1110,
DFID,CSC,26/06/2020,Scholar Stipend,Award Costs,Scholar,PIN047155,1110,
DFID,CSC,26/06/2020,Scholar Stipend,Award Costs,Scholar,PIN047156,1362,
DFID,CSC,26/06/2020,Scholar Stipend,Award Costs,Scholar,PIN047157,1110,
DFID,CSC,26/06/2020,Scholar Stipend,Award Costs,Scholar,PIN047158,1110,
DFID,CSC,26/06/2020,Scholar Stipend,Award Costs,Scholar,PIN047159,1362,
DFID,CSC,26/06/2020,Scholar Stipend,Award Costs,Scholar,PIN047160,1110,
DFID,CSC,26/06/2020,Scholar Stipend,Award Costs,Scholar,PIN047161,1110,
DFID,CSC,26/06/2020,Scholar Stipend,Award Costs,Scholar,PIN047162,1110,
DFID,CSC,26/06/2020,Scholar Stipend,Award Costs,Scholar,PIN047163,1110,
DFID,CSC,26/06/2020,Scholar Stipend,Award Costs,Scholar,PIN047164,1110,
DFID,CSC,26/06/2020,Scholar Stipend,Award Costs,Scholar,PIN047165,1110,
DFID,CSC,26/06/2020,Scholar Stipend,Award Costs,Scholar,PIN047166,1362,
DFID,CSC,26/06/2020,Scholar Stipend,Award Costs,Scholar,PIN047167,1110,
DFID,CSC,26/06/2020,Scholar Stipend,Award Costs,Scholar,PIN047168,1110,
DFID,CSC,26/06/2020,Scholar Stipend,Award Costs,Scholar,PIN047169,1110,
DFID,CSC,26/06/2020,Scholar Stipend,Award Costs,Scholar,PIN047170,1110,
DFID,CSC,26/06/2020,Scholar Stipend,Award Costs,Scholar,PIN047171,1110,
DFID,CSC,26/06/2020,Scholar Stipend,Award Costs,Scholar,PIN047172,1110,
DFID,CSC,26/06/2020,Scholar Stipend,Award Costs,Scholar,PIN047173,1110,
DFID,CSC,26/06/2020,Scholar Stipend,Award Costs,Scholar,PIN047174,1110,
DFID,CSC,26/06/2020,Scholar Stipend,Award Costs,Scholar,PIN047175,1110,
DFID,CSC,26/06/2020,Scholar Stipend,Award Costs,Scholar,PIN047176,1362,
DFID,CSC,26/06/2020,Scholar Stipend,Award Costs,Scholar,PIN047177,1362,
DFID,CSC,26/06/2020,Scholar Stipend,Award Costs,Scholar,PIN047178,1110,
DFID,CSC,26/06/2020,Scholar Stipend,Award Costs,Scholar,PIN047179,1110,
DFID,CSC,26/06/2020,Scholar Stipend,Award Costs,Scholar,PIN047180,1362,
DFID,CSC,26/06/2020,Scholar Stipend,Award Costs,Scholar,PIN047181,1362,
DFID,CSC,26/06/2020,Scholar Stipend,Award Costs,Scholar,PIN047182,1110,
DFID,CSC,26/06/2020,Scholar Stipend,Award Costs,Scholar,PIN047183,1362,
DFID,CSC,26/06/2020,Scholar Stipend,Award Costs,Scholar,PIN047184,1110,
DFID,CSC,26/06/2020,Scholar Stipend,Award Costs,Scholar,PIN047185,1110,
DFID,CSC,26/06/2020,Scholar Stipend,Award Costs,Scholar,PIN047186,555,
DFID,CSC,26/06/2020,Scholar Stipend,Award Costs,Scholar,PIN047187,1362,
DFID,CSC,26/06/2020,Scholar Stipend,Award Costs,Scholar,PIN047188,1110,
DFID,CSC,26/06/2020,Scholar Stipend,Award Costs,Scholar,PIN047189,1362,
DFID,CSC,26/06/2020,Scholar Stipend,Award Costs,Scholar,PIN047190,1110,
DFID,CSC,26/06/2020,Scholar Stipend,Award Costs,Scholar,PIN047191,1110,
DFID,CSC,26/06/2020,Scholar Stipend,Award Costs,Scholar,PIN047192,1110,
DFID,CSC,26/06/2020,Scholar Stipend,Award Costs,Scholar,PIN047193,1110,
DFID,CSC,26/06/2020,Scholar Stipend,Award Costs,Scholar,PIN047194,1362,
DFID,CSC,26/06/2020,Scholar Stipend,Award Costs,Scholar,PIN047195,1110,
DFID,CSC,26/06/2020,Scholar Stipend,Award Costs,Scholar,PIN047196,1110,
DFID,CSC,26/06/2020,Scholar Stipend,Award Costs,Scholar,PIN047197,1110,
DFID,CSC,26/06/2020,Scholar Stipend,Award Costs,Scholar,PIN047198,1362,
DFID,CSC,26/06/2020,Scholar Stipend,Award Costs,Scholar,PIN047199,1110,
DFID,CSC,26/06/2020,Scholar Stipend,Award Costs,Scholar,PIN047200,1110,
DFID,CSC,26/06/2020,Scholar Stipend,Award Costs,Scholar,PIN047201,1110,
DFID,CSC,26/06/2020,Scholar Stipend,Award Costs,Scholar,PIN047202,1110,
DFID,CSC,26/06/2020,Scholar Stipend,Award Costs,Scholar,PIN047203,1110,
DFID,CSC,26/06/2020,Scholar Stipend,Award Costs,Scholar,PIN047204,1110,
DFID,CSC,26/06/2020,Scholar Stipend,Award Costs,Scholar,PIN047205,1110,
DFID,CSC,26/06/2020,Scholar Stipend,Award Costs,Scholar,PIN047206,1110,
DFID,CSC,26/06/2020,Scholar Stipend,Award Costs,Scholar,PIN047207,1110,
DFID,CSC,26/06/2020,Scholar Stipend,Award Costs,Scholar,PIN047208,1362,
DFID,CSC,26/06/2020,Scholar Stipend,Award Costs,Scholar,PIN047209,1110,
DFID,CSC,26/06/2020,Scholar Stipend,Award Costs,Scholar,PIN047210,1110,
DFID,CSC,26/06/2020,Scholar Stipend,Award Costs,Scholar,PIN047211,1110,
DFID,CSC,26/06/2020,Scholar Stipend,Award Costs,Scholar,PIN047212,1110,
DFID,CSC,26/06/2020,Scholar Stipend,Award Costs,Scholar,PIN047213,1110,
DFID,CSC,26/06/2020,Scholar Stipend,Award Costs,Scholar,PIN047214,1362,
DFID,CSC,26/06/2020,Scholar Stipend,Award Costs,Scholar,PIN047215,1110,
DFID,CSC,26/06/2020,Scholar Stipend,Award Costs,Scholar,PIN047216,1110,
DFID,CSC,26/06/2020,Scholar Stipend,Award Costs,Scholar,PIN047217,1110,
DFID,CSC,26/06/2020,Scholar Stipend,Award Costs,Scholar,PIN047218,1362,
DFID,CSC,26/06/2020,Scholar Stipend,Award Costs,Scholar,PIN047219,1110,
DFID,CSC,26/06/2020,Scholar Stipend,Award Costs,Scholar,PIN047220,1362,
DFID,CSC,26/06/2020,Scholar Stipend,Programme Costs,Scholar,PIN047221,1110,
DFID,CSC,26/06/2020,Scholar Stipend,Award Costs,Scholar,PIN047222,1110,
DFID,CSC,26/06/2020,Scholar Stipend,Award Costs,Scholar,PIN047223,1362,
DFID,CSC,26/06/2020,Scholar Stipend,Award Costs,Scholar,PIN047224,1110,
DFID,CSC,26/06/2020,Scholar Stipend,Award Costs,Scholar,PIN047225,1110,
DFID,CSC,26/06/2020,Scholar Stipend,Award Costs,Scholar,PIN047226,1110,
DFID,CSC,26/06/2020,Scholar Stipend,Award Costs,Scholar,PIN047227,1110,
DFID,CSC,26/06/2020,Scholar Stipend,Award Costs,Scholar,PIN047228,1110,
DFID,CSC,26/06/2020,Scholar Stipend,Award Costs,Scholar,PIN047229,1110,
DFID,CSC,26/06/2020,Scholar Stipend,Award Costs,Scholar,PIN047230,1110,
DFID,CSC,26/06/2020,Scholar Stipend,Award Costs,Scholar,PIN047231,1110,
DFID,CSC,26/06/2020,Scholar Stipend,Award Costs,Scholar,PIN047232,1110,
DFID,CSC,26/06/2020,Scholar Stipend,Award Costs,Scholar,PIN047233,1110,
DFID,CSC,26/06/2020,Scholar Stipend,Award Costs,Scholar,PIN047234,1362,
DFID,CSC,26/06/2020,Scholar Stipend,Award Costs,Scholar,PIN047235,1362,
DFID,CSC,26/06/2020,Scholar Stipend,Award Costs,Scholar,PIN047236,1110,
DFID,CSC,26/06/2020,Scholar Stipend,Award Costs,Scholar,PIN047237,1110,
DFID,CSC,26/06/2020,Scholar Stipend,Award Costs,Scholar,PIN047238,1110,
DFID,CSC,26/06/2020,Scholar Stipend,Award Costs,Scholar,PIN047239,1110,
DFID,CSC,26/06/2020,Scholar Stipend,Award Costs,Scholar,PIN047240,1110,
DFID,CSC,26/06/2020,Scholar Stipend,Award Costs,Scholar,PIN047241,1362,
DFID,CSC,26/06/2020,Scholar Stipend,Award Costs,Scholar,PIN047242,1110,
DFID,CSC,26/06/2020,Scholar Stipend,Award Costs,Scholar,PIN047243,1110,
DFID,CSC,26/06/2020,Scholar Stipend,Award Costs,Scholar,PIN047244,1110,
DFID,CSC,26/06/2020,Scholar Stipend,Award Costs,Scholar,PIN047245,1110,
DFID,CSC,26/06/2020,Scholar Stipend,Award Costs,Scholar,PIN047246,681,
DFID,CSC,26/06/2020,Scholar Stipend,Award Costs,Scholar,PIN047247,1110,
DFID,CSC,26/06/2020,Scholar Stipend,Award Costs,Scholar,PIN047248,1110,
DFID,CSC,26/06/2020,Scholar Stipend,Award Costs,Scholar,PIN047249,1362,
DFID,CSC,26/06/2020,Scholar Stipend,Award Costs,Scholar,PIN047250,1110,
DFID,CSC,26/06/2020,Scholar Stipend,Award Costs,Scholar,PIN047251,1110,
DFID,CSC,26/06/2020,Scholar Stipend,Award Costs,Scholar,PIN047252,1110,
DFID,CSC,26/06/2020,Scholar Stipend,Award Costs,Scholar,PIN047253,1110,
DFID,CSC,26/06/2020,Scholar Stipend,Award Costs,Scholar,PIN047254,1110,
DFID,CSC,26/06/2020,Scholar Stipend,Award Costs,Scholar,PIN047255,1110,
DFID,CSC,26/06/2020,Scholar Stipend,Award Costs,Scholar,PIN047256,1110,
DFID,CSC,26/06/2020,Scholar Stipend,Award Costs,Scholar,PIN047257,1110,
DFID,CSC,26/06/2020,Scholar Stipend,Award Costs,Scholar,PIN047258,1362,
DFID,CSC,26/06/2020,Scholar Stipend,Award Costs,Scholar,PIN047259,1110,
DFID,CSC,26/06/2020,Scholar Stipend,Award Costs,Scholar,PIN047260,1110,
DFID,CSC,26/06/2020,Scholar Stipend,Award Costs,Scholar,PIN047261,1110,
DFID,CSC,26/06/2020,Scholar Stipend,Award Costs,Scholar,PIN047262,1110,
DFID,CSC,26/06/2020,Scholar Stipend,Award Costs,Scholar,PIN047263,1362,
DFID,CSC,26/06/2020,Scholar Stipend,Award Costs,Scholar,PIN047264,1110,
DFID,CSC,26/06/2020,Scholar Stipend,Award Costs,Scholar,PIN047265,1362,
DFID,CSC,26/06/2020,Scholar Stipend,Award Costs,Scholar,PIN047266,1110,
DFID,CSC,26/06/2020,Scholar Stipend,Award Costs,Scholar,PIN047267,1110,
DFID,CSC,26/06/2020,Scholar Stipend,Award Costs,Scholar,PIN047268,1110,
DFID,CSC,26/06/2020,Scholar Stipend,Award Costs,Scholar,PIN047269,1110,
DFID,CSC,26/06/2020,Scholar Stipend,Award Costs,Scholar,PIN047270,1110,
DFID,CSC,26/06/2020,Scholar Stipend,Award Costs,Scholar,PIN047271,1110,
DFID,CSC,26/06/2020,Scholar Stipend,Award Costs,Scholar,PIN047272,1110,
DFID,CSC,26/06/2020,Scholar Stipend,Award Costs,Scholar,PIN047273,1110,
DFID,CSC,26/06/2020,Scholar Stipend,Award Costs,Scholar,PIN047274,1110,
DFID,CSC,26/06/2020,Scholar Stipend,Award Costs,Scholar,PIN047275,1110,
DFID,CSC,26/06/2020,Scholar Stipend,Award Costs,Scholar,PIN047276,1110,
DFID,CSC,26/06/2020,Scholar Stipend,Award Costs,Scholar,PIN047277,1110,
DFID,CSC,26/06/2020,Scholar Stipend,Award Costs,Scholar,PIN047278,1362,
DFID,CSC,26/06/2020,Scholar Stipend,Award Costs,Scholar,PIN047279,1110,
DFID,CSC,26/06/2020,Scholar Stipend,Award Costs,Scholar,PIN047280,1362,
DFID,CSC,26/06/2020,Scholar Stipend,Award Costs,Scholar,PIN047281,1110,
DFID,CSC,26/06/2020,Scholar Stipend,Award Costs,Scholar,PIN047282,1110,
DFID,CSC,26/06/2020,Scholar Stipend,Award Costs,Scholar,PIN047283,1110,
DFID,CSC,26/06/2020,Scholar Stipend,Award Costs,Scholar,PIN047284,1362,
DFID,CSC,26/06/2020,Scholar Stipend,Award Costs,Scholar,PIN047285,1110,
DFID,CSC,26/06/2020,Scholar Stipend,Award Costs,Scholar,PIN047286,1110,
DFID,CSC,26/06/2020,Scholar Stipend,Award Costs,Scholar,PIN047287,1110,
DFID,CSC,26/06/2020,Scholar Stipend,Award Costs,Scholar,PIN047288,1362,
DFID,CSC,26/06/2020,Scholar Stipend,Award Costs,Scholar,PIN047289,1362,
DFID,CSC,26/06/2020,Scholar Stipend,Award Costs,Scholar,PIN047290,1110,
DFID,CSC,26/06/2020,Scholar Stipend,Award Costs,Scholar,PIN047291,1110,
DFID,CSC,26/06/2020,Scholar Stipend,Award Costs,Scholar,PIN047292,1110,
DFID,CSC,26/06/2020,Scholar Stipend,Award Costs,Scholar,PIN047293,1110,
DFID,CSC,26/06/2020,Scholar Stipend,Award Costs,Scholar,PIN047294,1110,
DFID,CSC,26/06/2020,Scholar Stipend,Award Costs,Scholar,PIN047295,1110,
DFID,CSC,26/06/2020,Scholar Stipend,Award Costs,Scholar,PIN047296,1110,
DFID,CSC,26/06/2020,Scholar Stipend,Award Costs,Scholar,PIN047297,1110,
DFID,CSC,26/06/2020,Scholar Stipend,Award Costs,Scholar,PIN047298,1110,
DFID,CSC,26/06/2020,Scholar Stipend,Award Costs,Scholar,PIN047299,1110,
DFID,CSC,26/06/2020,Scholar Stipend,Award Costs,Scholar,PIN047300,1110,
DFID,CSC,26/06/2020,Scholar Stipend,Award Costs,Scholar,PIN047301,1110,
DFID,CSC,26/06/2020,Scholar Stipend,Award Costs,Scholar,PIN047302,1110,
DFID,CSC,26/06/2020,Scholar Stipend,Award Costs,Scholar,PIN047303,1110,
DFID,CSC,26/06/2020,Scholar Stipend,Award Costs,Scholar,PIN047304,1362,
DFID,CSC,26/06/2020,Scholar Stipend,Award Costs,Scholar,PIN047305,1362,
DFID,CSC,26/06/2020,Scholar Stipend,Award Costs,Scholar,PIN047306,1110,
DFID,CSC,26/06/2020,Scholar Stipend,Award Costs,Scholar,PIN047307,1110,
DFID,CSC,26/06/2020,Scholar Stipend,Award Costs,Scholar,PIN047308,1110,
DFID,CSC,26/06/2020,Scholar Stipend,Award Costs,Scholar,PIN047309,1110,
DFID,CSC,26/06/2020,Scholar Stipend,Award Costs,Scholar,PIN047310,1110,
DFID,CSC,26/06/2020,Scholar Stipend,Award Costs,Scholar,PIN047311,1110,
DFID,CSC,26/06/2020,Scholar Stipend,Award Costs,Scholar,PIN047312,1110,
DFID,CSC,26/06/2020,Scholar Stipend,Award Costs,Scholar,PIN047313,1110,
DFID,CSC,26/06/2020,Scholar Stipend,Award Costs,Scholar,PIN047314,1110,
DFID,CSC,26/06/2020,Scholar Stipend,Award Costs,Scholar,PIN047315,1110,
DFID,CSC,26/06/2020,Scholar Stipend,Award Costs,Scholar,PIN047316,1110,
DFID,CSC,26/06/2020,Scholar Stipend,Award Costs,Scholar,PIN047317,1110,
DFID,CSC,26/06/2020,Scholar Stipend,Award Costs,Scholar,PIN047318,1110,
DFID,CSC,26/06/2020,Scholar Stipend,Award Costs,Scholar,PIN047319,1110,
DFID,CSC,26/06/2020,Scholar Stipend,Award Costs,Scholar,PIN047320,1362,
DFID,CSC,26/06/2020,Scholar Stipend,Award Costs,Scholar,PIN047321,1110,
DFID,CSC,26/06/2020,Scholar Stipend,Award Costs,Scholar,PIN047322,1110,
DFID,CSC,26/06/2020,Scholar Stipend,Award Costs,Scholar,PIN047323,1110,
DFID,CSC,26/06/2020,Scholar Stipend,Award Costs,Scholar,PIN047324,1110,
DFID,CSC,26/06/2020,Scholar Stipend,Award Costs,Scholar,PIN047325,1110,
DFID,CSC,26/06/2020,Scholar Stipend,Award Costs,Scholar,PIN047326,1110,
DFID,CSC,26/06/2020,Scholar Stipend,Award Costs,Scholar,PIN047327,1110,
DFID,CSC,26/06/2020,Scholar Stipend,Award Costs,Scholar,PIN047328,1362,
DFID,CSC,26/06/2020,Scholar Stipend,Award Costs,Scholar,PIN047329,1110,
DFID,CSC,26/06/2020,Scholar Stipend,Award Costs,Scholar,PIN047330,1362,
DFID,CSC,26/06/2020,Scholar Stipend,Award Costs,Scholar,PIN047331,1110,
DFID,CSC,26/06/2020,Scholar Stipend,Award Costs,Scholar,PIN047332,681,
DFID,CSC,26/06/2020,Scholar Stipend,Award Costs,Scholar,PIN047333,1110,
DFID,CSC,26/06/2020,Scholar Stipend,Award Costs,Scholar,PIN047334,1110,
DFID,CSC,26/06/2020,Scholar Stipend,Award Costs,Scholar,PIN047335,1110,
DFID,CSC,26/06/2020,Scholar Stipend,Award Costs,Scholar,PIN047336,1110,
DFID,CSC,26/06/2020,Scholar Stipend,Award Costs,Scholar,PIN047337,1362,
DFID,CSC,26/06/2020,Scholar Stipend,Award Costs,Scholar,PIN047338,1110,
DFID,CSC,26/06/2020,Scholar Stipend,Award Costs,Scholar,PIN047339,1110,
DFID,CSC,26/06/2020,Scholar Stipend,Award Costs,Scholar,PIN047340,1110,
DFID,CSC,26/06/2020,Scholar Stipend,Award Costs,Scholar,PIN047341,1362,
DFID,CSC,26/06/2020,Scholar Stipend,Award Costs,Scholar,PIN047342,1110,
DFID,CSC,26/06/2020,Scholar Stipend,Award Costs,Scholar,PIN047343,1110,
DFID,CSC,26/06/2020,Scholar Stipend,Award Costs,Scholar,PIN047344,1110,
DFID,CSC,26/06/2020,Scholar Stipend,Award Costs,Scholar,PIN047345,1110,
DFID,CSC,26/06/2020,Scholar Stipend,Award Costs,Scholar,PIN047346,1110,
DFID,CSC,26/06/2020,Scholar Stipend,Award Costs,Scholar,PIN047347,1110,
DFID,CSC,26/06/2020,Scholar Stipend,Award Costs,Scholar,PIN047348,1110,
DFID,CSC,26/06/2020,Scholar Stipend,Award Costs,Scholar,PIN047349,1110,
DFID,CSC,26/06/2020,Scholar Stipend,Award Costs,Scholar,PIN047350,1110,
DFID,CSC,26/06/2020,Scholar Stipend,Award Costs,Scholar,PIN047351,1362,
DFID,CSC,26/06/2020,Scholar Stipend,Award Costs,Scholar,PIN047352,1110,
DFID,CSC,26/06/2020,Scholar Stipend,Award Costs,Scholar,PIN047353,1110,
DFID,CSC,26/06/2020,Scholar Stipend,Award Costs,Scholar,PIN047354,1110,
DFID,CSC,26/06/2020,Scholar Stipend,Award Costs,Scholar,PIN047356,1110,
DFID,CSC,26/06/2020,Scholar Stipend,Award Costs,Scholar,PIN047357,1110,
DFID,CSC,26/06/2020,Scholar Stipend,Award Costs,Scholar,PIN047358,1110,
DFID,CSC,26/06/2020,Scholar Stipend,Award Costs,Scholar,PIN047359,1362,
DFID,CSC,26/06/2020,Scholar Stipend,Award Costs,Scholar,PIN047360,1110,
DFID,CSC,26/06/2020,Scholar Stipend,Award Costs,Scholar,PIN047361,1110,
DFID,CSC,26/06/2020,Scholar Stipend,Award Costs,Scholar,PIN047362,1110,
DFID,CSC,26/06/2020,Scholar Stipend,Award Costs,Scholar,PIN047363,1110,
DFID,CSC,26/06/2020,Scholar Stipend,Award Costs,Scholar,PIN047364,1110,
DFID,CSC,26/06/2020,Scholar Stipend,Award Costs,Scholar,PIN047365,1110,
DFID,CSC,26/06/2020,Scholar Stipend,Award Costs,Scholar,PIN047366,1362,
DFID,CSC,26/06/2020,Scholar Stipend,Award Costs,Scholar,PIN047367,1110,
DFID,CSC,26/06/2020,Scholar Stipend,Award Costs,Scholar,PIN047368,1110,
DFID,CSC,26/06/2020,Scholar Stipend,Award Costs,Scholar,PIN047369,1362,
DFID,CSC,26/06/2020,Scholar Stipend,Award Costs,Scholar,PIN047370,1110,
DFID,CSC,26/06/2020,Scholar Stipend,Award Costs,Scholar,PIN047371,1110,
DFID,CSC,26/06/2020,Scholar Stipend,Award Costs,Scholar,PIN047372,1110,
DFID,CSC,26/06/2020,Scholar Stipend,Award Costs,Scholar,PIN047373,1110,
DFID,CSC,26/06/2020,Scholar Stipend,Award Costs,Scholar,PIN047374,1110,
DFID,CSC,26/06/2020,Scholar Stipend,Award Costs,Scholar,PIN047375,1362,
DFID,CSC,26/06/2020,Scholar Stipend,Award Costs,Scholar,PIN047376,1110,
DFID,CSC,26/06/2020,Scholar Stipend,Award Costs,Scholar,PIN047377,1362,
DFID,CSC,26/06/2020,Scholar Stipend,Award Costs,Scholar,PIN047378,1110,
DFID,CSC,26/06/2020,Scholar Stipend,Award Costs,Scholar,PIN047379,1362,
DFID,CSC,26/06/2020,Scholar Stipend,Award Costs,Scholar,PIN047380,1110,
DFID,CSC,26/06/2020,Scholar Stipend,Award Costs,Scholar,PIN047381,1110,
DFID,CSC,26/06/2020,Scholar Stipend,Award Costs,Scholar,PIN047382,1110,
DFID,CSC,26/06/2020,Scholar Stipend,Award Costs,Scholar,PIN047383,1362,
DFID,CSC,26/06/2020,Scholar Stipend,Award Costs,Scholar,PIN047384,1110,
DFID,CSC,26/06/2020,Scholar Stipend,Award Costs,Scholar,PIN047385,1110,
DFID,CSC,26/06/2020,Scholar Stipend,Award Costs,Scholar,PIN047386,1110,
DFID,CSC,26/06/2020,Scholar Stipend,Award Costs,Scholar,PIN047387,1362,
DFID,CSC,26/06/2020,Scholar Stipend,Award Costs,Scholar,PIN047388,1110,
DFID,CSC,26/06/2020,Scholar Stipend,Award Costs,Scholar,PIN047389,1110,
DFID,CSC,26/06/2020,Scholar Stipend,Award Costs,Scholar,PIN047390,1362,
DFID,CSC,26/06/2020,Scholar Stipend,Award Costs,Scholar,PIN047391,1362,
DFID,CSC,26/06/2020,Scholar Stipend,Award Costs,Scholar,PIN047392,681,
DFID,CSC,26/06/2020,Scholar Stipend,Award Costs,Scholar,PIN047393,1110,
DFID,CSC,26/06/2020,Scholar Stipend,Award Costs,Scholar,PIN047394,1110,
DFID,CSC,26/06/2020,Scholar Stipend,Award Costs,Scholar,PIN047395,1110,
DFID,CSC,26/06/2020,Scholar Stipend,Award Costs,Scholar,PIN047396,1362,
DFID,CSC,26/06/2020,Scholar Stipend,Award Costs,Scholar,PIN047397,1110,
DFID,CSC,26/06/2020,Scholar Stipend,Award Costs,Scholar,PIN047398,1110,
DFID,CSC,26/06/2020,Scholar Stipend,Award Costs,Scholar,PIN047399,1110,
DFID,CSC,26/06/2020,Scholar Stipend,Award Costs,Scholar,PIN047400,1362,
DFID,CSC,26/06/2020,Scholar Stipend,Award Costs,Scholar,PIN047401,1110,
DFID,CSC,26/06/2020,Scholar Stipend,Award Costs,Scholar,PIN047402,1110,
DFID,CSC,26/06/2020,Scholar Stipend,Award Costs,Scholar,PIN047403,1110,
DFID,CSC,26/06/2020,Scholar Stipend,Award Costs,Scholar,PIN047404,1110,
DFID,CSC,26/06/2020,Scholar Stipend,Award Costs,Scholar,PIN047405,1362,
DFID,CSC,26/06/2020,Scholar Stipend,Award Costs,Scholar,PIN047406,1110,
DFID,CSC,26/06/2020,Scholar Stipend,Award Costs,Scholar,PIN047407,1110,
DFID,CSC,26/06/2020,Scholar Stipend,Award Costs,Scholar,PIN047408,1110,
DFID,CSC,26/06/2020,Scholar Stipend,Award Costs,Scholar,PIN047409,1110,
DFID,CSC,26/06/2020,Scholar Stipend,Award Costs,Scholar,PIN047410,1362,
DFID,CSC,26/06/2020,Scholar Stipend,Award Costs,Scholar,PIN047411,1110,
DFID,CSC,26/06/2020,Scholar Stipend,Award Costs,Scholar,PIN047412,1362,
DFID,CSC,26/06/2020,Scholar Stipend,Award Costs,Scholar,PIN047413,1110,
DFID,CSC,26/06/2020,Scholar Stipend,Award Costs,Scholar,PIN047414,1110,
DFID,CSC,26/06/2020,Scholar Stipend,Award Costs,Scholar,PIN047415,1110,
DFID,CSC,26/06/2020,Scholar Stipend,Award Costs,Scholar,PIN047416,1362,
DFID,CSC,26/06/2020,Scholar Stipend,Award Costs,Scholar,PIN047417,1110,
DFID,CSC,26/06/2020,Scholar Stipend,Award Costs,Scholar,PIN047418,1110,
DFID,CSC,26/06/2020,Scholar Stipend,Award Costs,Scholar,PIN047419,1110,
DFID,CSC,26/06/2020,Scholar Stipend,Award Costs,Scholar,PIN047420,1362,
DFID,CSC,26/06/2020,Scholar Stipend,Award Costs,Scholar,PIN047421,1110,
DFID,CSC,26/06/2020,Scholar Stipend,Award Costs,Scholar,PIN047422,1110,
DFID,CSC,26/06/2020,Scholar Stipend,Award Costs,Scholar,PIN047423,1110,
DFID,CSC,26/06/2020,Scholar Stipend,Award Costs,Scholar,PIN047424,1110,
DFID,CSC,26/06/2020,Scholar Stipend,Award Costs,Scholar,PIN047425,1110,
DFID,CSC,26/06/2020,Scholar Stipend,Award Costs,Scholar,PIN047426,1362,
DFID,CSC,26/06/2020,Scholar Stipend,Award Costs,Scholar,PIN047427,1362,
DFID,CSC,26/06/2020,Scholar Stipend,Award Costs,Scholar,PIN047428,1110,
DFID,CSC,26/06/2020,Scholar Stipend,Award Costs,Scholar,PIN047429,1110,
DFID,CSC,26/06/2020,Scholar Stipend,Award Costs,Scholar,PIN047430,1110,
DFID,CSC,26/06/2020,Scholar Stipend,Award Costs,Scholar,PIN047431,1362,
DFID,CSC,26/06/2020,Scholar Stipend,Award Costs,Scholar,PIN047432,1110,
DFID,CSC,26/06/2020,Scholar Stipend,Award Costs,Scholar,PIN047433,1110,
DFID,CSC,26/06/2020,Scholar Stipend,Award Costs,Scholar,PIN047434,1110,
DFID,CSC,26/06/2020,Scholar Stipend,Award Costs,Scholar,PIN047435,1110,
DFID,CSC,26/06/2020,Scholar Stipend,Award Costs,Scholar,PIN047436,1110,
DFID,CSC,26/06/2020,Scholar Stipend,Award Costs,Scholar,PIN047437,1110,
DFID,CSC,26/06/2020,Scholar Stipend,Award Costs,Scholar,PIN047438,1110,
DFID,CSC,26/06/2020,Scholar Stipend,Award Costs,Scholar,PIN047439,1110,
DFID,CSC,26/06/2020,Scholar Stipend,Award Costs,Scholar,PIN047440,1110,
DFID,CSC,26/06/2020,Scholar Stipend,Award Costs,Scholar,PIN047441,1110,
DFID,CSC,26/06/2020,Scholar Stipend,Award Costs,Scholar,PIN047442,1362,
DFID,CSC,26/06/2020,Scholar Stipend,Award Costs,Scholar,PIN047443,1110,
DFID,CSC,26/06/2020,Scholar Stipend,Award Costs,Scholar,PIN047444,1110,
DFID,CSC,26/06/2020,Scholar Stipend,Award Costs,Scholar,PIN047445,1110,
DFID,CSC,26/06/2020,Scholar Stipend,Award Costs,Scholar,PIN047446,1110,
DFID,CSC,26/06/2020,Scholar Stipend,Award Costs,Scholar,PIN047447,1110,
DFID,CSC,26/06/2020,Scholar Stipend,Award Costs,Scholar,PIN047448,1110,
DFID,CSC,26/06/2020,Scholar Stipend,Award Costs,Scholar,PIN047449,1110,
DFID,CSC,26/06/2020,Scholar Allowances,Award Costs,Scholar,PIN047450,1110,
DFID,CSC,26/06/2020,Scholar Allowances,Award Costs,Scholar,PIN047455,593,
DFID,CSC,26/06/2020,Scholar Allowances,Award Costs,Scholar,PIN047482,710,
DFID,CSC,26/06/2020,Scholar Allowances,Award Costs,Scholar,PIN047505,593,
DFID,CSC,26/06/2020,Scholar Allowances,Award Costs,Scholar,PIN047583,1500,
DFID,CSC,26/06/2020,Scholar Allowances,Award Costs,Scholar,PIN047584,1800,
DFID,CSC,26/06/2020,Scholar Allowances,Award Costs,Scholar,PIN047585,1000,
DFID,CSC,26/06/2020,Scholar Allowances,Award Costs,Scholar,PIN047586,1125,
DFID,CSC,26/06/2020,Scholar Allowances,Award Costs,Scholar,PIN047587,1560,
DFID,CSC,26/06/2020,Scholar Allowances,Award Costs,Scholar,PIN047588,1125,
DFID,CSC,26/06/2020,Scholar Travel,Award Costs,Scholar,PIN047600,589.45,
DFID,CSC,26/06/2020,Scholar Allowances,Award Costs,Queen Margaret University,PIN047601,675,
DFID,CSC,26/06/2020,Scholar Allowances,Award Costs,Queen Margaret University,PIN047601,600,
DFID,CSC,26/06/2020,Scholar Travel,Award Costs,Bangor University,PIN047602,2066.7,
DFID,CSC,26/06/2020,Scholar Travel,Award Costs,Scholar,PIN047603,737.62,
DFID,CSC,26/06/2020,Scholar Travel,Award Costs,Scholar,PIN047604,567.45,
DFID,CSC,26/06/2020,Tuition Fee,Award Costs,Queen Mary University of London,PIN047605,109700,
DFID,CSC,26/06/2020,Scholar Allowances,Award Costs,Scholar,PIN047607,540.81,
DFID,CSC,26/06/2020,Scholar Allowances,Award Costs,Scholar,PIN047608,1725.13,
DFID,CSC,26/06/2020,Scholar Allowances,Award Costs,Scholar,PIN047610,1089.6,
DFID,CSC,25/06/2020,Scholar Stipend,Award Costs,Scholar,PIN047664,967.75,
DFID,CSC,25/06/2020,Scholar Stipend,Award Costs,Scholar,PIN047664,780.09,
DFID,CSC,25/06/2020,Bank Charges,Programme Costs,MasterCard Prepaid Management Services Ltd,PIN047664,17.48,
DFID,CSC,25/06/2020,Scholar Stipend,Award Costs,Scholar,PIN047665,780.09,
DFID,CSC,25/06/2020,Scholar Stipend,Award Costs,Scholar,PIN047665,780.09,
DFID,CSC,25/06/2020,Scholar Stipend,Award Costs,Scholar,PIN047665,780.09,
DFID,CSC,25/06/2020,Scholar Stipend,Award Costs,Scholar,PIN047665,780.09,
DFID,CSC,25/06/2020,Scholar Stipend,Award Costs,Scholar,PIN047665,780.09,
DFID,CSC,25/06/2020,Scholar Stipend,Award Costs,Scholar,PIN047665,780.09,
DFID,CSC,25/06/2020,Bank Charges,Programme Costs,MasterCard Prepaid Management Services Ltd,PIN047665,46.8,
DFID,CSC,25/06/2020,Scholar Stipend,Award Costs,Scholar,PIN047666,1696,
DFID,CSC,25/06/2020,Scholar Stipend,Award Costs,Scholar,PIN047666,1696,
DFID,CSC,25/06/2020,Scholar Stipend,Award Costs,Scholar,PIN047666,1696,
DFID,CSC,25/06/2020,Visa Costs,Award Costs,Scholar,PIN047666,55,
DFID,CSC,25/06/2020,Scholar Stipend,Award Costs,Scholar,PIN047666,-4354.89,
DFID,CSC,25/06/2020,Scholar Stipend,Award Costs,Scholar,PIN047666,-3657.96,
DFID,CSC,25/06/2020,Scholar Stipend,Award Costs,Scholar,PIN047666,-167.16,
DFID,CSC,25/06/2020,Scholar Stipend,Award Costs,Scholar,PIN047666,-1.31,
DFID,CSC,25/06/2020,Scholar Stipend,Award Costs,Scholar,PIN047666,-27.98,
DFID,CSC,25/06/2020,Scholar Stipend,Award Costs,Scholar,PIN047666,-3.14,
DFID,CSC,25/06/2020,Scholar Stipend,Award Costs,Scholar,PIN047666,-4.35,
DFID,CSC,25/06/2020,Scholar Stipend,Award Costs,Scholar,PIN047666,-60.53,
DFID,CSC,25/06/2020,Scholar Stipend,Award Costs,Scholar,PIN047666,-3.61,
DFID,CSC,25/06/2020,Scholar Stipend,Award Costs,Scholar,PIN047666,-3081.89,
DFID,CSC,25/06/2020,Scholar Stipend,Award Costs,Scholar,PIN047666,-3150.95,
DFID,CSC,25/06/2020,Bank Charges,Programme Costs,MasterCard Prepaid Management Services Ltd,PIN047666,51.43,
DFID,CSC,04/06/2020,Engagement,Programme Costs,NatWest CC,NOM000976,19,
DFID,CSC,04/06/2020,Engagement,Programme Costs,NatWest CC,NOM000976,97.99,
DFID,CSC,04/06/2020,Engagement,Programme Costs,NatWest CC,NOM000976,890.48,
DFID,CSC,04/06/2020,Engagement,Programme Costs,NatWest CC,NOM000976,59,
DFID,CSC,04/06/2020,Engagement,Programme Costs,NatWest CC,NOM000976,131.44,
DFID,CSC,04/06/2020,Engagement,Programme Costs,NatWest CC,NOM000976,128.03,
DFID,CSC,04/06/2020,Engagement,Programme Costs,NatWest CC,NOM000976,20.98,
DFID,CSC,04/06/2020,Engagement,Programme Costs,NatWest CC,NOM000976,127.78,
